fUSD/lending_fUSD_20260628
["ID","MTS","AMOUNT","RATE_DAILY","PERIOD"]
[426543480,1782575441000,-3467.88022334,0.00023043,2]
[426543496,1782575441000,-3467.88022334,0.00023778,2]
[426543485,1782575441000,-758.723396,0.00023167,7]
[426543483,1782575441000,-3467.88022334,0.00023159,2]
[426543486,1782575441000,-3467.88022334,0.00023226,2]
[426543488,1782575441000,-154.42815987,0.00023288,2]
[426543492,1782575441000,-3467.88022334,0.00023404,2]
[426543484,1782575441000,-507.18832148,0.00023167,7]
[426543487,1782575441000,-152.26269015,0.00023268,2]
[426543491,1782575441000,-463.79,0.00023325,2]
[426543489,1782575441000,-3467.88022334,0.0002331,2]
[426543493,1782575441000,-3467.88022334,0.00023504,2]
[426543494,1782575441000,-152.26269015,0.00023542,2]
[426543490,1782575441000,-212.97912775,0.0002331,4]
[426543459,1782575441000,-316.0,0.000228,2]
[426543477,1782575441000,-3467.88022334,0.00023016,2]
[426543457,1782575441000,-210.91860273,0.00022798,4]
[426543432,1782575441000,-4792.21,0.00022,2]
[426543467,1782575441000,-152.26269015,0.00022994,2]
[426543431,1782575441000,-47922.15,0.00022,2]
[426543495,1782575441000,-49715.0,0.00023562,2]
[426543434,1782575441000,-155.5238928,0.00022,2]
[426543435,1782575441000,-325.0,0.00022,2]
[426543436,1782575441000,-166.0,0.00022,2]
[426543433,1782575441000,-221.0,0.00022,2]
[426543430,1782575441000,-334.0,0.00022,2]
[426543438,1782575441000,-287.50240518,0.00022167,7]
[426543440,1782575441000,-16663.14122316,0.00022192,2]
[426543450,1782575441000,-1277.0,0.0002261,2]
[426543451,1782575441000,-282.0,0.0002261,2]
[426543452,1782575441000,-150.0,0.0002261,2]
[426543439,1782575441000,-152.26269015,0.00022172,2]
[426543462,1782575441000,-150.0,0.00022882,4]
[426543442,1782575441000,-152.26269015,0.00022446,2]
[426543445,1782575441000,-1874.54,0.00022466,2]
[426543444,1782575441000,-1637.69,0.00022466,2]
[426543446,1782575441000,-691.17219575,0.00022471,2]
[426543448,1782575441000,-192.0,0.00022578,10]
[426543449,1782575441000,-3563.0,0.0002261,2]
[426543443,1782575441000,-802.51,0.00022466,2]
[426543447,1782575441000,-210.91860274,0.000225,3]
[426543453,1782575441000,-935.0,0.0002261,2]
[426543455,1782575441000,-152.26269015,0.0002272,2]
[426543458,1782575441000,-1000.0,0.000228,2]
[426543461,1782575441000,-150.0,0.00022882,4]
[426543454,1782575441000,-324.209,0.0002261,2]
[426543466,1782575441000,-500.0,0.00022959,2]
[426543441,1782575441000,-189.87395339,0.00022409,2]
[426543497,1782575441000,-152.26269015,0.00023816,2]
[426543437,1782575441000,-2656.39,0.00022,2]
[426543506,1782575441000,-299.0,0.00024,2]
[426543529,1782575441000,-151.0,0.0002485,2]
[426543534,1782575441000,-691.17219575,0.00024981,2]
[426543537,1782575441000,-220.38787864,0.00024992,2]
[426543541,1782575441000,-500.0,0.00024999,2]
[426543536,1782575441000,-225.41456301,0.00024991,2]
[426543539,1782575441000,-229.95029674,0.00024992,2]
[426543545,1782575441000,-342.0,0.00025,2]
[426543535,1782575441000,-234.63845108,0.00024991,2]
[426543538,1782575441000,-210.25148584,0.00024992,2]
[426543544,1782575441000,-304.0,0.00025,2]
[426543542,1782575441000,-379.08,0.00024999,2]
[426543540,1782575441000,-500.0,0.00024999,2]
[426543546,1782575441000,-50000.0,0.00025,2]
[426543543,1782575441000,-228.0,0.00025,2]
[426543548,1782575441000,-11818.34,0.00025,2]
[426543559,1782575441000,-150.0,0.0002561,2]
[426543560,1782575441000,-463.79,0.00025658,2]
[426543558,1782575441000,-282.0,0.0002561,2]
[426543547,1782575441000,-50000.0,0.00025,2]
[426543549,1782575441000,-11181.83,0.00025,2]
[426543550,1782575441000,-228.0,0.00025,2]
[426543553,1782575441000,-2000.0,0.000254,2]
[426543552,1782575441000,-171.0,0.00025,2]
[426543555,1782575441000,-151.06,0.00025504,7]
[426543561,1782575441000,-150.0,0.00025675,7]
[426543557,1782575441000,-3563.0,0.0002561,2]
[426543554,1782575441000,-150.0,0.00025425,7]
[426543551,1782575441000,-342.0,0.00025,2]
[426543499,1782575441000,-3467.88022334,0.0002389,2]
[426543530,1782575441000,-151.0,0.0002485,2]
[426543528,1782575441000,-151.0,0.0002485,2]
[426543556,1782575441000,-151.14,0.00025504,7]
[426543525,1782575441000,-151.0,0.0002485,2]
[426543526,1782575441000,-151.0,0.0002485,2]
[426543498,1782575441000,-3467.88022334,0.00023863,2]
[426543502,1782575441000,-500.0,0.00023999,2]
[426543505,1782575441000,-500.0,0.00024,2]
[426543503,1782575441000,-500.0,0.00023999,2]
[426543501,1782575441000,-3467.88022334,0.00023972,2]
[426543504,1782575441000,-215.0,0.00024,2]
[426543500,1782575441000,-3467.88022334,0.00023915,2]
[426543512,1782575441000,-423.0,0.000241,5]
[426543511,1782575441000,-152.26269015,0.0002409,2]
[426543510,1782575441000,-166.0,0.00024,2]
[426543514,1782575441000,-1026.5706,0.00024167,7]
[426543517,1782575441000,-152.26269024,0.00024364,2]
[426543518,1782575441000,-3571.69862656,0.00024498,2]
[426543507,1782575441000,-334.0,0.00024,2]
[426543519,1782575441000,-163.25567929,0.00024657,2]
[426543523,1782575441000,-151.14,0.00024658,2]
[426543509,1782575441000,-325.0,0.00024,2]
[426543524,1782575441000,-2000.0,0.000247,2]
[426543522,1782575441000,-151.06,0.00024658,2]
[426543533,1782575441000,-334.73,0.00024961,7]
[426543531,1782575441000,-151.0,0.0002485,2]
[426543520,1782575441000,-177.23,0.00024658,2]
[426543521,1782575441000,-1000.0,0.00024658,2]
[426543527,1782575441000,-151.0,0.0002485,2]
[426543516,1782575441000,-200.0,0.00024323,2]
[426543515,1782575441000,-3467.88022334,0.00024263,2]
[426543508,1782575441000,-221.0,0.00024,2]
[426543513,1782575441000,-3467.88022334,0.00024102,2]
[426543532,1782575441000,-151.0,0.0002485,2]
[426543611,1782575442000,-500.0,0.00026463,7]
[426543602,1782575442000,-236.87731203,0.00026392,2]
[426543609,1782575442000,-500.0,0.00026463,7]
[426543612,1782575442000,-174.55,0.00026463,7]
[426543599,1782575442000,-661.16363591,0.00026392,2]
[426543597,1782575442000,-703.91535323,0.00026392,2]
[426543610,1782575442000,-500.0,0.00026463,7]
[426543596,1782575442000,-240.91735405,0.00026389,2]
[426543598,1782575442000,-676.24368902,0.00026392,2]
[426543595,1782575442000,-151.14,0.00026351,30]
[426543606,1782575442000,-212.84,0.000264,7]
[426543600,1782575442000,-630.75445753,0.00026392,2]
[426543605,1782575442000,-371.78801824,0.00026392,2]
[426543620,1782575442000,-267.53529414,0.00026792,2]
[426543601,1782575442000,-689.85089022,0.00026392,2]
[426543604,1782575442000,-357.24200063,0.00026392,2]
[426543607,1782575442000,-500.0,0.00026463,7]
[426543608,1782575442000,-500.0,0.00026463,7]
[426543615,1782575442000,-219.56925,0.0002653,2]
[426543613,1782575442000,-219.56925,0.0002653,2]
[426543614,1782575442000,-219.56926,0.0002653,2]
[426543616,1782575442000,-350.0,0.00026614,8]
[426543617,1782575442000,-4458.0,0.00026695,10]
[426543618,1782575442000,-151.0,0.00026733,2]
[426543626,1782575442000,-219.56926,0.000268,2]
[426543621,1782575442000,-624.14,0.00026799,7]
[426543589,1782575442000,-1340.4006559,0.00026322,2]
[426543603,1782575442000,-287.15997775,0.00026392,2]
[426543594,1782575442000,-151.06,0.00026351,30]
[426543585,1782575442000,-205.84136639,0.00026251,5]
[426543593,1782575442000,-1682683.1622651,0.00026322,2]
[426543619,1782575442000,-49618.0,0.00026767,2]
[426543562,1782575442000,-156.84109195,0.00025697,2]
[426543570,1782575442000,-151.0,0.0002589,3]
[426543565,1782575442000,-450.82912602,0.00025832,2]
[426543563,1782575442000,-1200.0,0.000258,9]
[426543569,1782575442000,-459.90059348,0.00025832,2]
[426543564,1782575442000,-469.27690215,0.00025832,2]
[426543566,1782575442000,-180.95128057,0.00025832,2]
[426543567,1782575442000,-440.77575727,0.00025832,2]
[426543568,1782575442000,-420.50297169,0.00025832,2]
[426543572,1782575442000,-151.0,0.0002589,3]
[426543571,1782575442000,-151.0,0.0002589,3]
[426543575,1782575442000,-550.0,0.00026,2]
[426543573,1782575442000,-151.0,0.0002589,3]
[426543574,1782575442000,-1500.0,0.000259,9]
[426543584,1782575442000,-3571.69862656,0.00026199,2]
[426543582,1782575442000,-500.0,0.00026118,2]
[426543583,1782575442000,-500.0,0.00026118,2]
[426543579,1782575442000,-286452.6064,0.0002609,2]
[426543578,1782575442000,-500.0,0.00026089,2]
[426543577,1782575442000,-500.0,0.00026089,2]
[426543580,1782575442000,-500.0,0.00026118,2]
[426543581,1782575442000,-500.0,0.00026118,2]
[426543576,1782575442000,-350.0,0.00026029,2]
[426543586,1782575442000,-295.97046684,0.00026312,2]
[426543588,1782575442000,-252.56,0.00026321,2]
[426543587,1782575442000,-151.0,0.00026319,7]
[426543591,1782575442000,-3204.9691275,0.00026322,2]
[426543590,1782575442000,-207521.2147545,0.00026322,2]
[426543592,1782575442000,-7929.5064971,0.00026322,2]
[426543622,1782575442000,-721.46,0.00026799,30]
[426543630,1782575442000,-151.0,0.000268,3]
[426543625,1782575442000,-151.0,0.000268,2]
[426543663,1782575442000,-151.0,0.00027562,2]
[426543659,1782575442000,-11150.32988837,0.00027556,2]
[426543660,1782575442000,-151.0,0.00027562,2]
[426543662,1782575442000,-151.62,0.00027562,2]
[426543657,1782575442000,-500.0,0.000275,7]
[426543665,1782575442000,-151.0,0.00027562,2]
[426543664,1782575442000,-157.83,0.00027562,2]
[426543672,1782575442000,-395.73,0.00027562,2]
[426543671,1782575442000,-482.55,0.00027562,2]
[426543668,1782575442000,-151.0,0.00027562,2]
[426543667,1782575442000,-151.0,0.00027562,2]
[426543669,1782575442000,-573.82,0.00027562,2]
[426543666,1782575442000,-151.66,0.00027562,2]
[426543661,1782575442000,-151.49,0.00027562,2]
[426543670,1782575442000,-151.0,0.00027562,2]
[426543673,1782575442000,-151.0,0.00027562,2]
[426543675,1782575442000,-151.0,0.00027562,2]
[426543681,1782575442000,-605.42,0.00027603,7]
[426543686,1782575442000,-11150.32988837,0.00028,2]
[426543676,1782575442000,-151.0,0.00027562,2]
[426543679,1782575442000,-151.0,0.00027562,2]
[426543678,1782575442000,-151.0,0.00027562,2]
[426543624,1782575442000,-431106.73921683,0.000268,2]
[426543680,1782575442000,-151.0,0.00027563,2]
[426543677,1782575442000,-151.0,0.00027562,2]
[426543685,1782575442000,-3571.69862656,0.000279,2]
[426543682,1782575442000,-883.81,0.00027603,7]
[426543684,1782575442000,-11150.32988837,0.00027778,2]
[426543674,1782575442000,-151.0,0.00027562,2]
[426543658,1782575442000,-392.46717522,0.000275,2]
[426543683,1782575442000,-6688.0,0.00027763,10]
[426543655,1782575442000,-708.5204489,0.00027397,2]
[426543656,1782575442000,-691.17219575,0.0002749,2]
[426543623,1782575442000,-911.15,0.00026799,7]
[426543631,1782575442000,-151.0,0.000268,3]
[426543637,1782575442000,-151.0,0.00026988,3]
[426543627,1782575442000,-219.56925,0.000268,2]
[426543629,1782575442000,-2068.0,0.000268,2]
[426543638,1782575442000,-151.0,0.00026988,3]
[426543632,1782575442000,-151.0,0.000268,3]
[426543640,1782575442000,-151.0,0.00026988,3]
[426543636,1782575442000,-151.0,0.00026988,3]
[426543639,1782575442000,-151.0,0.00026988,3]
[426543633,1782575442000,-11150.32988837,0.00026889,2]
[426543635,1782575442000,-151.0,0.00026988,3]
[426543634,1782575442000,-151.0,0.00026988,3]
[426543628,1782575442000,-219.56926,0.000268,2]
[426543649,1782575442000,-212.84,0.000273,7]
[426543641,1782575442000,-151.0,0.00026988,3]
[426543654,1782575442000,-472.34696594,0.00027397,2]
[426543652,1782575442000,-168.52,0.00027397,2]
[426543645,1782575442000,-151.0,0.00026988,3]
[426543648,1782575442000,-183.73152602,0.0002727,2]
[426543653,1782575442000,-236.17348297,0.00027397,2]
[426543650,1782575442000,-11150.32988837,0.00027333,2]
[426543642,1782575442000,-151.0,0.00026988,3]
[426543646,1782575442000,-269.74234929,0.00026988,3]
[426543651,1782575442000,-509.75104966,0.00027397,2]
[426543647,1782575442000,-11150.32988837,0.00027111,2]
[426543644,1782575442000,-151.0,0.00026988,3]
[426543643,1782575442000,-151.0,0.00026988,3]
[426543727,1782575443000,-325.0,0.00028674,30]
[426543735,1782575443000,-334.0,0.00028676,30]
[426543737,1782575443000,-2590.8885656,0.00028815,2]
[426543721,1782575443000,-221.0,0.00028674,30]
[426543725,1782575443000,-153.0,0.00028674,30]
[426543723,1782575443000,-154.0,0.00028674,30]
[426543734,1782575443000,-299.0,0.00028676,30]
[426543738,1782575443000,-352.18183861,0.00028862,2]
[426543731,1782575443000,-164.0,0.00028676,30]
[426543733,1782575443000,-215.0,0.00028676,30]
[426543739,1782575443000,-2000.0,0.000289,2]
[426543750,1782575443000,-1000.0,0.000295,2]
[426543741,1782575443000,-1080.84590779,0.00028996,7]
[426543740,1782575443000,-350.0,0.00028947,2]
[426543749,1782575443000,-363.51,0.00029433,10]
[426543747,1782575443000,-8917.0,0.00029097,10]
[426543743,1782575443000,-400.46,0.00029,2]
[426543746,1782575443000,-287.0,0.00029,7]
[426543744,1782575443000,-155.8,0.00029,7]
[426543745,1782575443000,-10000.0,0.00029,2]
[426543748,1782575443000,-11698.0,0.0002912,20]
[426543718,1782575443000,-158.0,0.00028674,30]
[426543742,1782575443000,-9099.94406364,0.00028996,7]
[426543729,1782575443000,-166.0,0.00028674,30]
[426543691,1782575443000,-2000.0,0.000282,2]
[426543713,1782575443000,-3563.0,0.0002861,2]
[426543692,1782575443000,-666.32,0.00028364,7]
[426543699,1782575443000,-482.55,0.00028384,2]
[426543689,1782575443000,-7987.02,0.00028,2]
[426543688,1782575443000,-29870.24,0.00028,2]
[426543696,1782575443000,-151.0,0.00028384,2]
[426543695,1782575443000,-396.27,0.00028384,2]
[426543687,1782575443000,-50000.0,0.00028,2]
[426543693,1782575443000,-5627.08,0.00028364,7]
[426543698,1782575443000,-482.58,0.00028384,2]
[426543694,1782575443000,-644.34,0.00028384,2]
[426543712,1782575443000,-586.69,0.00028407,7]
[426543690,1782575443000,-237.18007815,0.00028063,2]
[426543701,1782575443000,-151.0,0.00028385,2]
[426543705,1782575443000,-574.48,0.00028385,2]
[426543707,1782575443000,-482.55,0.00028385,2]
[426543706,1782575443000,-482.29,0.00028385,2]
[426543710,1782575443000,-482.55,0.00028385,2]
[426543708,1782575443000,-482.55,0.00028385,2]
[426543711,1782575443000,-212.84,0.000284,7]
[426543715,1782575443000,-155.0,0.00028674,30]
[426543714,1782575443000,-282.0,0.0002861,2]
[426543709,1782575443000,-482.55,0.00028385,2]
[426543762,1782575443000,-334.0,0.00029676,30]
[426543752,1782575443000,-155.0,0.00029674,30]
[426543703,1782575443000,-482.03,0.00028385,2]
[426543754,1782575443000,-221.0,0.00029674,30]
[426543779,1782575443000,-315.0,0.000301,5]
[426543782,1782575443000,-1650000.0,0.000301,7]
[426543785,1782575443000,-238.55898369,0.00021216,2]
[426543784,1782575443000,-160.0,0.00013135,2]
[426543786,1782575443000,-5206.25,0.00027397,10]
[426543787,1782575443000,-78882.44253522,0.000301,7]
[426543789,1782575443000,-12477.17718533,0.000301,7]
[426543790,1782575443000,-2950.0,0.000301,7]
[426543791,1782575443000,-1185.58961994,0.000301,7]
[426543793,1782575443000,-186.56593462,0.00024144,2]
[426543792,1782575443000,-151.0,0.00017551,2]
[426543794,1782575443000,-1200.06765467,0.00024144,2]
[426543795,1782575443000,-1035.09887345,0.00024144,2]
[426543798,1782575443000,-29386.08382544,0.000301,7]
[426543796,1782575443000,-14241.40876042,0.00024144,2]
[426543797,1782575443000,-156.84109196,0.00026698,2]
[426543804,1782575443000,-6930.04427175,0.000301,7]
[426543803,1782575443000,-23096.536476,0.000301,7]
[426543805,1782575443000,-1460.22448843,0.000301,7]
[426543801,1782575443000,-2639.14414431,0.000301,7]
[426543799,1782575443000,-63052.84063124,0.000301,7]
[426543800,1782575443000,-146983.92638422,0.000301,7]
[426543802,1782575443000,-969.80068858,0.000301,7]
[426543781,1782575443000,-12546.72944443,0.000301,2]
[426543780,1782575443000,-227.43713343,0.000301,15]
[426543751,1782575443000,-591.90315534,0.00029624,2]
[426543777,1782575443000,-666.0,0.00030099,10]
[426543783,1782575443000,-15579.26972513,0.000301,7]
[426543753,1782575443000,-158.0,0.00029674,30]
[426543755,1782575443000,-154.0,0.00029674,30]
[426543756,1782575443000,-153.0,0.00029674,30]
[426543757,1782575443000,-325.0,0.00029674,30]
[426543761,1782575443000,-299.0,0.00029676,30]
[426543759,1782575443000,-164.0,0.00029676,30]
[426543760,1782575443000,-215.0,0.00029676,30]
[426543766,1782575443000,-300.0,0.000299,10]
[426543767,1782575443000,-22235.6,0.0003,2]
[426543763,1782575443000,-212.84,0.000297,7]
[426543758,1782575443000,-166.0,0.00029674,30]
[426543769,1782575443000,-212.84,0.0003,7]
[426543778,1782575443000,-300.0,0.00030099,10]
[426543776,1782575443000,-151.0,0.00030097,7]
[426543764,1782575443000,-300.0,0.000298,10]
[426543772,1782575443000,-295.97046684,0.0003009,2]
[426543773,1782575443000,-151.0,0.00030097,7]
[426543770,1782575443000,-691.17219575,0.0003,2]
[426543775,1782575443000,-151.0,0.00030097,7]
[426543774,1782575443000,-151.0,0.00030097,7]
[426543765,1782575443000,-484.06350778,0.00029867,7]
[426543768,1782575443000,-2164.84379324,0.0003,12]
[426543771,1782575443000,-11698.0,0.0003008,20]
[426543814,1782575446000,-4419.01612462,0.00026096,2]
[426543812,1782575446000,-2064.3527658,0.00026096,2]
[426543813,1782575446000,-1772.2922684,0.00026096,2]
[426543810,1782575446000,-3518.73913784,0.00026096,2]
[426543809,1782575446000,-2643.2102964,0.00026096,2]
[426543811,1782575446000,-412.08957102,0.00026096,2]
[426543824,1782575447000,-1314.12,0.00026096,2]
[426543827,1782575447000,-238.55898369,0.0003,2]
[426543826,1782575447000,-151.0,0.0002861,2]
[426543825,1782575447000,-519.32105908,0.00026096,2]
[426543830,1782575447000,-455.24162395,0.000301,7]
[426543829,1782575447000,-2054.07008403,0.000301,7]
[426543828,1782575447000,-24740.61995723,0.000301,7]
[426543835,1782575501000,179.36931728,0.00012056,7]
[426543838,1782575621000,384.8,0.00029371,120]
[426543859,1782576110000,-232.7270889,0.00012224,2]
[426543860,1782576110000,-2500.0,0.0001229,2]
[426543862,1782576110000,-295.88277909,0.00012324,2]
[426543861,1782576110000,-2767.28567031,0.00012291,2]
[426543863,1782576110000,-49715.0,0.00012356,2]
[426543865,1782576110000,-157.79086016,0.00012389,2]
[426543866,1782576110000,-500.0,0.00012389,2]
[426543868,1782576110000,-500.0,0.00012389,2]
[426543864,1782576110000,-197.31364456,0.0001238,2]
[426543867,1782576110000,-226.2191212,0.00012389,2]
[426543873,1782576110000,-500.0,0.00012389,2]
[426543872,1782576110000,-500.0,0.00012389,2]
[426543870,1782576110000,-552.90533736,0.00012389,2]
[426543871,1782576110000,-500.0,0.00012389,2]
[426543874,1782576110000,-500.0,0.00012389,2]
[426543877,1782576110000,-500.0,0.00012389,2]
[426543875,1782576110000,-500.0,0.00012389,2]
[426543876,1782576110000,-234.76640417,0.00012389,2]
[426543869,1782576110000,-635.12271984,0.00012389,2]
[426543891,1782576111000,-500.0,0.00012389,2]
[426543887,1782576111000,-219.97867926,0.00012389,2]
[426543886,1782576111000,-500.0,0.00012389,2]
[426543888,1782576111000,-500.0,0.00012389,2]
[426543884,1782576111000,-500.0,0.00012389,2]
[426543881,1782576111000,-500.0,0.00012389,2]
[426543882,1782576111000,-500.0,0.00012389,2]
[426543883,1782576111000,-500.0,0.00012389,2]
[426543879,1782576111000,-500.0,0.00012389,2]
[426543878,1782576111000,-500.0,0.00012389,2]
[426543889,1782576111000,-500.0,0.00012389,2]
[426543885,1782576111000,-500.0,0.00012389,2]
[426543890,1782576111000,-500.0,0.00012389,2]
[426543880,1782576111000,-500.0,0.00012389,2]
[426543895,1782576111000,-500.0,0.00012389,2]
[426543905,1782576111000,-176689.13135544,0.0001239,2]
[426543904,1782576111000,-219.97867926,0.00012389,2]
[426543902,1782576111000,-500.0,0.00012389,2]
[426543901,1782576111000,-219.97867926,0.00012389,2]
[426543903,1782576111000,-500.0,0.00012389,2]
[426543900,1782576111000,-500.0,0.00012389,2]
[426543892,1782576111000,-195.96162267,0.00012389,2]
[426543897,1782576111000,-500.0,0.00012389,2]
[426543898,1782576111000,-530.19164018,0.00012389,2]
[426543896,1782576111000,-189.78703908,0.00012389,2]
[426543894,1782576111000,-219.97867926,0.00012389,2]
[426543893,1782576111000,-500.0,0.00012389,2]
[426543899,1782576111000,-500.0,0.00012389,2]
[426543917,1782576213000,-500.0,0.00012389,2]
[426543919,1782576213000,-500.0,0.00012389,2]
[426543918,1782576213000,-500.0,0.00012389,2]
[426543916,1782576213000,-500.0,0.00012389,2]
[426543915,1782576213000,-500.0,0.00012389,2]
[426543909,1782576213000,-2545.304,0.00012011,2]
[426543914,1782576213000,-500.0,0.00012389,2]
[426543913,1782576213000,-6665.2564893,0.00012291,2]
[426543911,1782576213000,-609.97598785,0.00012191,2]
[426543910,1782576213000,-236.354,0.00012011,2]
[426543920,1782576213000,-500.0,0.00012389,2]
[426543912,1782576213000,-1500000.0,0.00012256,2]
[426543921,1782576213000,-500.0,0.00012389,2]
[426543927,1782576213000,-500.0,0.00012389,2]
[426543924,1782576213000,-500.0,0.00012389,2]
[426543922,1782576213000,-500.0,0.00012389,2]
[426543936,1782576213000,-479158.34098144,0.0001239,2]
[426543934,1782576213000,-500.0,0.00012389,2]
[426543935,1782576213000,-157.84924805,0.00012389,2]
[426543933,1782576213000,-500.0,0.00012389,2]
[426543930,1782576213000,-500.0,0.00012389,2]
[426543932,1782576213000,-500.0,0.00012389,2]
[426543929,1782576213000,-500.0,0.00012389,2]
[426543928,1782576213000,-500.0,0.00012389,2]
[426543926,1782576213000,-500.0,0.00012389,2]
[426543925,1782576213000,-500.0,0.00012389,2]
[426543923,1782576213000,-626.91929336,0.00012389,2]
[426543931,1782576213000,-500.0,0.00012389,2]
[426543938,1782576235000,-2000.0,0.00012391,2]
[426543939,1782576235000,-2767.28567022,0.00012589,2]
[426543937,1782576235000,-844152.52766312,0.0001239,2]
[426543943,1782576235000,-151.0,0.00012727,2]
[426543942,1782576235000,-151.0,0.00012727,2]
[426543941,1782576235000,-6665.25648926,0.00012705,2]
[426543940,1782576235000,-160.0,0.0001265,2]
[426543957,1782576236000,-500.0,0.00013698,2]
[426543962,1782576236000,-500.0,0.00013698,2]
[426543961,1782576236000,-500.0,0.00013698,2]
[426543959,1782576236000,-500.0,0.00013698,2]
[426543960,1782576236000,-500.0,0.00013698,2]
[426543954,1782576236000,-500.0,0.00013698,2]
[426543958,1782576236000,-579.85520138,0.00013698,2]
[426543955,1782576236000,-500.0,0.00013698,2]
[426543956,1782576236000,-500.0,0.00013698,2]
[426543944,1782576236000,-151.0,0.00012727,2]
[426543952,1782576236000,-250.0,0.00013629,2]
[426543950,1782576236000,-1378.43317842,0.00013506,2]
[426543951,1782576236000,-6665.25648926,0.00013533,2]
[426543949,1782576236000,-2767.28567022,0.00013483,2]
[426543946,1782576236000,-6665.25648926,0.00013119,2]
[426543948,1782576236000,-250.0,0.00013482,2]
[426543947,1782576236000,-2767.28567022,0.00013185,2]
[426543945,1782576236000,-2767.28567022,0.00012887,2]
[426543965,1782576236000,-379.08,0.00013698,2]
[426543953,1782576236000,-500.0,0.00013698,2]
[426543964,1782576236000,-500.0,0.00013698,2]
[426543963,1782576236000,-500.0,0.00013698,2]
[426543966,1782576236000,-644.04069585,0.00013698,2]
[426543967,1782576236000,-500.0,0.00013698,2]
[426543986,1782576236000,-7462.46058258,0.000145,2]
[426543988,1782576236000,-2767.28567022,0.00014675,2]
[426543987,1782576236000,-171.89,0.00014554,2]
[426543985,1782576236000,-500.0,0.00014452,2]
[426543984,1782576236000,-500.0,0.00014452,2]
[426543983,1782576236000,-500.0,0.00014452,2]
[426543981,1782576236000,-500.0,0.00014452,2]
[426543982,1782576236000,-500.0,0.00014452,2]
[426543980,1782576236000,-500.0,0.00014452,2]
[426543979,1782576236000,-2767.28567022,0.00014377,2]
[426543977,1782576236000,-2767.28567022,0.00014079,2]
[426543968,1782576236000,-500.0,0.00013698,2]
[426543976,1782576236000,-170.9,0.00014004,2]
[426543975,1782576236000,-6665.25648926,0.00013947,2]
[426543974,1782576236000,-170.68,0.00013825,2]
[426543972,1782576236000,-236.49,0.000137,2]
[426543973,1782576236000,-2767.28567022,0.00013781,2]
[426543971,1782576236000,-200.0,0.00013699,2]
[426543970,1782576236000,-252.56,0.00013698,2]
[426543969,1782576236000,-500.0,0.00013698,2]
[426543978,1782576236000,-6665.25648926,0.0001436,2]
[426543989,1782576237000,-609.97598779,0.00014734,2]
[426543991,1782576237000,-250.72019701,0.00014962,2]
[426543990,1782576237000,-6665.25648926,0.00014774,2]
[426543992,1782576237000,-2767.28567022,0.00014973,2]
[426543993,1782576237000,-1065330.27652631,0.00015,2]
[426543994,1782576249000,-500.0,0.00012389,2]
[426543995,1782576249000,-1812.16,0.00013698,2]
[426543996,1782576249000,-1812.16,0.00013698,2]
[426543998,1782576249000,-1812.16,0.00013698,2]
[426543997,1782576249000,-1812.16,0.00013698,2]
[426544000,1782576249000,-1812.16,0.00013698,2]
[426544002,1782576249000,-200.0,0.0001473,2]
[426544001,1782576249000,-200.0,0.00014328,2]
[426544009,1782576249000,-300.0,0.00014999,2]
[426544006,1782576249000,-151.0,0.00014997,2]
[426544005,1782576249000,-40255.0,0.00014959,2]